[Event "Titled Tuesday Blitz August 1 Late 2023"]
[White "Wu, Rochelle"]
[Black "Andreassen, Lars"]
[WhiteFideId "30908132"]
[BlackFideId "1504878"]
[WhiteElo "2603"]
[BlackElo "2277"]
[Result "1-0"]
[Round "2"]
[TimeControl "180+1"]
[Date "2023.08.01"]
[WhiteClock "0:00:52"]
[BlackClock "0:00:14"]
[Board "84"]

1. d4 {[%clk 0:03:00]}  d5 {[%clk 0:02:58]} 2. c3 {[%clk 0:03:01]}  Nf6 {[%clk 0:02:57]} 3. g3 {[%clk 0:03:01]}  g6 {[%clk 0:02:55]} 4. Bg2 {[%clk 0:03:01]}  Bg7 {[%clk 0:02:55]} 5. Nf3 {[%clk 0:03:02]}  O-O {[%clk 0:02:56]} 6. O-O {[%clk 0:03:02]}  c6 {[%clk 0:02:53]} 7. Re1 {[%clk 0:03:00]}  Bf5 {[%clk 0:02:51]} 8. Nbd2 {[%clk 0:02:56]}  Ne4 {[%clk 0:02:49]} 9. Nh4 {[%clk 0:02:54]}  Nxd2 {[%clk 0:02:47]} 10. Bxd2 {[%clk 0:02:55]}  Bd7 {[%clk 0:02:43]} 11. Qc2 {[%clk 0:02:51]}  Na6 {[%clk 0:02:29]} 12. e4 {[%clk 0:02:50]}  dxe4 {[%clk 0:02:29]} 13. Bxe4 {[%clk 0:02:51]}  Nc7 {[%clk 0:02:27]} 14. Rad1 {[%clk 0:02:50]}  Bh3 {[%clk 0:02:22]} 15. Nf3 {[%clk 0:02:47]}  e6 {[%clk 0:02:21]} 16. c4 {[%clk 0:02:34]}  Bf5 {[%clk 0:02:16]} 17. Bxf5 {[%clk 0:02:33]}  gxf5 {[%clk 0:02:13]} 18. Bf4 {[%clk 0:02:14]}  Rc8 {[%clk 0:01:57]} 19. g4 {[%clk 0:01:50]}  fxg4 {[%clk 0:01:55]} 20. Ng5 {[%clk 0:01:48]}  f5 {[%clk 0:01:44]} 21. Nxe6 {[%clk 0:01:46]}  Nxe6 {[%clk 0:01:43]} 22. Rxe6 {[%clk 0:01:46]}  Bxd4 {[%clk 0:01:35]} 23. Rd6 {[%clk 0:01:39]}  Bxf2+ {[%clk 0:01:29]} 24. Qxf2 {[%clk 0:01:40]}  Qa5 {[%clk 0:01:21]} 25. Rd7 {[%clk 0:01:20]}  Rcd8 {[%clk 0:01:11]} 26. Qh4 {[%clk 0:01:01]}  Rxd7 {[%clk 0:00:52]} 27. Rxd7 {[%clk 0:01:02]}  Rf7 {[%clk 0:00:32]} 28. Rd8+ {[%clk 0:00:58]}  Rf8 {[%clk 0:00:21]} 29. Qg5+ {[%clk 0:00:54]}  Kf7 {[%clk 0:00:14]} 30. Rd7+ {[%clk 0:00:52]} 1-0


[Site "https://www.chess.com"]

[Event "Titled Tuesday Blitz August 1 Late 2023"]
[White "Skytte, Rasmus"]
[Black "vishwa_vijeta"]
[WhiteFideId "1404210"]
[WhiteElo "2253"]
[BlackElo "2595"]
[Result "1-0"]
[Round "2"]
[TimeControl "180+1"]
[Date "2023.08.01"]
[WhiteClock "0:00:01"]
[BlackClock "0:00:00"]
[Board "85"]

1. e4 {[%clk 0:03:00]}  c5 {[%clk 0:02:59]} 2. Nf3 {[%clk 0:03:00]}  d6 {[%clk 0:03:00]} 3. d4 {[%clk 0:02:59]}  cxd4 {[%clk 0:03:00]} 4. Nxd4 {[%clk 0:02:59]}  Nf6 {[%clk 0:03:01]} 5. Nc3 {[%clk 0:02:59]}  g6 {[%clk 0:03:01]} 6. Be3 {[%clk 0:02:58]}  Bg7 {[%clk 0:03:02]} 7. f3 {[%clk 0:02:57]}  O-O {[%clk 0:03:02]} 8. Qd2 {[%clk 0:02:57]}  Nc6 {[%clk 0:03:02]} 9. O-O-O {[%clk 0:02:54]}  d5 {[%clk 0:03:02]} 10. Nxc6 {[%clk 0:02:48]}  bxc6 {[%clk 0:03:02]} 11. Bc4 {[%clk 0:02:48]}  e6 {[%clk 0:02:50]} 12. Bb3 {[%clk 0:02:41]}  Nd7 {[%clk 0:02:41]} 13. h4 {[%clk 0:02:36]}  a5 {[%clk 0:02:29]} 14. Na4 {[%clk 0:02:28]}  Ba6 {[%clk 0:02:12]} 15. h5 {[%clk 0:02:26]}  Ne5 {[%clk 0:01:55]} 16. hxg6 {[%clk 0:02:07]}  hxg6 {[%clk 0:01:50]} 17. Bh6 {[%clk 0:01:56]}  dxe4 {[%clk 0:01:38]} 18. Qe3 {[%clk 0:01:52]}  Qf6 {[%clk 0:01:37]} 19. Bxg7 {[%clk 0:01:30]}  Qxg7 {[%clk 0:01:34]} 20. Qxe4 {[%clk 0:01:30]}  Rab8 {[%clk 0:01:25]} 21. Nc5 {[%clk 0:01:16]}  Rb4 {[%clk 0:01:20]} 22. Qe1 {[%clk 0:00:58]}  Bc4 {[%clk 0:01:09]} 23. f4 {[%clk 0:00:50]}  Bxb3 {[%clk 0:01:00]} 24. Qxe5 {[%clk 0:00:36]}  Qxe5 {[%clk 0:00:56]} 25. fxe5 {[%clk 0:00:35]}  Bxc2 {[%clk 0:00:53]} 26. Nd7 {[%clk 0:00:33]}  Kg7 {[%clk 0:00:29]} 27. Kxc2 {[%clk 0:00:21]}  Rd8 {[%clk 0:00:29]} 28. Nf6 {[%clk 0:00:19]}  Rxd1 {[%clk 0:00:26]} 29. Kxd1 {[%clk 0:00:19]}  Rxb2 {[%clk 0:00:25]} 30. Rh7+ {[%clk 0:00:19]}  Kf8 {[%clk 0:00:26]} 31. Rh8+ {[%clk 0:00:19]}  Kg7 {[%clk 0:00:26]} 32. Rg8+ {[%clk 0:00:19]}  Kh6 {[%clk 0:00:26]} 33. Rh8+ {[%clk 0:00:17]}  Kg5 {[%clk 0:00:26]} 34. Ne4+ {[%clk 0:00:17]}  Kf5 {[%clk 0:00:25]} 35. Nd6+ {[%clk 0:00:17]}  Kf4 {[%clk 0:00:25]} 36. Nxf7 {[%clk 0:00:18]}  Rxg2 {[%clk 0:00:21]} 37. Rf8 {[%clk 0:00:16]}  Ke3 {[%clk 0:00:20]} 38. Kc1 {[%clk 0:00:16]}  g5 {[%clk 0:00:20]} 39. Nd6 {[%clk 0:00:16]}  g4 {[%clk 0:00:19]} 40. Nc4+ {[%clk 0:00:15]}  Kd4 {[%clk 0:00:19]} 41. Nxa5 {[%clk 0:00:15]}  c5 {[%clk 0:00:17]} 42. Kb1 {[%clk 0:00:13]}  Kxe5 {[%clk 0:00:17]} 43. Nb3 {[%clk 0:00:13]}  c4 {[%clk 0:00:16]} 44. Nc1 {[%clk 0:00:13]}  g3 {[%clk 0:00:14]} 45. a4 {[%clk 0:00:13]}  c3 {[%clk 0:00:12]} 46. Rg8 {[%clk 0:00:13]}  Kf4 {[%clk 0:00:06]} 47. a5 {[%clk 0:00:12]}  Rb2+ {[%clk 0:00:05]} 48. Ka1 {[%clk 0:00:12]}  Rb5 {[%clk 0:00:05]} 49. Ne2+ {[%clk 0:00:12]}  Ke3 {[%clk 0:00:04]} 50. Nxc3 {[%clk 0:00:12]}  Rxa5+ {[%clk 0:00:05]} 51. Kb2 {[%clk 0:00:12]}  Kf3 {[%clk 0:00:05]} 52. Rf8+ {[%clk 0:00:12]}  Rf5 {[%clk 0:00:04]} 53. Rg8 {[%clk 0:00:09]}  g2 {[%clk 0:00:04]} 54. Nd1 {[%clk 0:00:07]}  Rf4 {[%clk 0:00:03]} 55. Kc2 {[%clk 0:00:06]}  Rg4 {[%clk 0:00:02]} 56. Rf8+ {[%clk 0:00:06]}  Ke2 {[%clk 0:00:01]} 57. Rf2+ {[%clk 0:00:05]}  Ke1 {[%clk 0:00:02]} 58. Rd2 {[%clk 0:00:01]}  g1=Q {[%clk 0:00:00]} 59. Nc3 {[%clk 0:00:01]} 1-0


[Site "https://www.chess.com"]

[Event "Titled Tuesday Blitz August 1 Late 2023"]
[White "ArchibaldCerveza29"]
[Black "Rustemov, Alexander"]
[BlackFideId "4119002"]
[WhiteElo "2474"]
[BlackElo "2837"]
[Result "0-1"]
[Round "2"]
[TimeControl "180+1"]
[Date "2023.08.01"]
[WhiteClock "0:00:00"]
[BlackClock "0:00:08"]
[Board "90"]

1. e4 {[%clk 0:03:00]}  e6 {[%clk 0:02:56]} 2. d4 {[%clk 0:02:59]}  d5 {[%clk 0:02:56]} 3. Nd2 {[%clk 0:03:00]}  dxe4 {[%clk 0:02:57]} 4. Nxe4 {[%clk 0:03:01]}  Bd7 {[%clk 0:02:57]} 5. Bd3 {[%clk 0:03:00]}  Bc6 {[%clk 0:02:58]} 6. Nf3 {[%clk 0:03:00]}  Nd7 {[%clk 0:02:58]} 7. O-O {[%clk 0:03:00]}  Ngf6 {[%clk 0:02:58]} 8. Ng3 {[%clk 0:03:00]}  Be7 {[%clk 0:02:58]} 9. c3 {[%clk 0:03:01]}  O-O {[%clk 0:02:59]} 10. Re1 {[%clk 0:03:01]}  b6 {[%clk 0:02:59]} 11. Qe2 {[%clk 0:03:01]}  Bb7 {[%clk 0:03:00]} 12. Bc2 {[%clk 0:02:58]}  c5 {[%clk 0:03:00]} 13. dxc5 {[%clk 0:02:58]}  Bxc5 {[%clk 0:02:48]} 14. Bg5 {[%clk 0:02:56]}  Qc7 {[%clk 0:02:45]} 15. Rad1 {[%clk 0:02:54]}  h6 {[%clk 0:02:43]} 16. Bc1 {[%clk 0:02:48]}  Rad8 {[%clk 0:02:41]} 17. a4 {[%clk 0:02:22]}  Rfe8 {[%clk 0:02:38]} 18. Bb3 {[%clk 0:02:16]}  a6 {[%clk 0:02:22]} 19. Bc4 {[%clk 0:02:09]}  Qc8 {[%clk 0:02:17]} 20. Bf4 {[%clk 0:02:09]}  Ng4 {[%clk 0:02:05]} 21. Nh1 {[%clk 0:02:00]}  Qa8 {[%clk 0:02:02]} 22. Nd4 {[%clk 0:01:51]}  Ngf6 {[%clk 0:01:58]} 23. Nf3 {[%clk 0:01:33]}  Bxf3 {[%clk 0:01:49]} 24. Qxf3 {[%clk 0:01:33]}  Qxf3 {[%clk 0:01:49]} 25. gxf3 {[%clk 0:01:34]}  a5 {[%clk 0:01:45]} 26. Ng3 {[%clk 0:01:34]}  Nf8 {[%clk 0:01:42]} 27. Bb5 {[%clk 0:01:33]}  Rxd1 {[%clk 0:01:41]} 28. Rxd1 {[%clk 0:01:34]}  Rc8 {[%clk 0:01:38]} 29. Be3 {[%clk 0:01:27]}  Nd5 {[%clk 0:01:21]} 30. Bxc5 {[%clk 0:01:27]}  Rxc5 {[%clk 0:01:21]} 31. Ne4 {[%clk 0:01:27]}  Rc7 {[%clk 0:01:19]} 32. Kf1 {[%clk 0:01:23]}  Ng6 {[%clk 0:01:19]} 33. Nd6 {[%clk 0:01:09]}  Kf8 {[%clk 0:01:12]} 34. Nc4 {[%clk 0:01:05]}  Ke7 {[%clk 0:01:11]} 35. Rd2 {[%clk 0:01:01]}  Ngf4 {[%clk 0:01:09]} 36. Ne3 {[%clk 0:01:01]}  g5 {[%clk 0:01:06]} 37. Ng4 {[%clk 0:00:59]}  h5 {[%clk 0:01:04]} 38. Ne5 {[%clk 0:00:59]}  Kf6 {[%clk 0:01:00]} 39. Nd7+ {[%clk 0:00:58]}  Kf5 {[%clk 0:01:00]} 40. c4 {[%clk 0:00:53]}  Nb4 {[%clk 0:00:53]} 41. Nxb6 {[%clk 0:00:53]}  Nfd3 {[%clk 0:00:47]} 42. Nd7 {[%clk 0:00:50]}  Kf4 {[%clk 0:00:44]} 43. Nf6 {[%clk 0:00:39]}  h4 {[%clk 0:00:38]} 44. Ne4 {[%clk 0:00:38]}  f5 {[%clk 0:00:36]} 45. Nd6 {[%clk 0:00:21]}  Kxf3 {[%clk 0:00:36]} 46. Ne8 {[%clk 0:00:22]}  Rc8 {[%clk 0:00:33]} 47. Ng7 {[%clk 0:00:21]}  Nc5 {[%clk 0:00:29]} 48. Rd6 {[%clk 0:00:15]}  Nbd3 {[%clk 0:00:21]} 49. Nxe6 {[%clk 0:00:14]}  Nxe6 {[%clk 0:00:19]} 50. Rxe6 {[%clk 0:00:15]}  Nxb2 {[%clk 0:00:19]} 51. Re5 {[%clk 0:00:09]}  Kf4 {[%clk 0:00:18]} 52. Rd5 {[%clk 0:00:09]}  g4 {[%clk 0:00:15]} 53. Bd7 {[%clk 0:00:08]}  Rf8 {[%clk 0:00:14]} 54. c5 {[%clk 0:00:08]}  Ke4 {[%clk 0:00:11]} 55. Bc6 {[%clk 0:00:08]}  Rf6 {[%clk 0:00:11]} 56. Rd6+ {[%clk 0:00:07]}  Ke5 {[%clk 0:00:11]} 57. Rxf6 {[%clk 0:00:08]}  Kxf6 {[%clk 0:00:11]} 58. Bb5 {[%clk 0:00:08]}  Ke5 {[%clk 0:00:11]} 59. c6 {[%clk 0:00:09]}  Kd6 {[%clk 0:00:11]} 60. Ke2 {[%clk 0:00:10]}  f4 {[%clk 0:00:11]} 61. Kd2 {[%clk 0:00:09]}  h3 {[%clk 0:00:09]} 62. Ke2 {[%clk 0:00:08]}  Nd1 {[%clk 0:00:07]} 63. Kxd1 {[%clk 0:00:08]}  g3 {[%clk 0:00:07]} 64. fxg3 {[%clk 0:00:00]}  fxg3 {[%clk 0:00:08]} 0-1


[Site "https://www.chess.com"]

[Event "Titled Tuesday Blitz August 1 Late 2023"]
[White "Baches Garcia, Guillermo"]
[Black "Fiorito, Joaquin"]
[WhiteFideId "2209764"]
[BlackFideId "180173"]
[WhiteElo "2435"]
[BlackElo "2701"]
[Result "1-0"]
[Round "2"]
[TimeControl "180+1"]
[Date "2023.08.01"]
[WhiteClock "0:00:13"]
[BlackClock "0:00:10"]
[Board "91"]

1. e4 {[%clk 0:03:00]}  c5 {[%clk 0:03:00]} 2. Nf3 {[%clk 0:03:00]}  d6 {[%clk 0:03:00]} 3. d4 {[%clk 0:03:01]}  cxd4 {[%clk 0:03:01]} 4. Nxd4 {[%clk 0:03:01]}  Nf6 {[%clk 0:03:02]} 5. Nc3 {[%clk 0:03:02]}  a6 {[%clk 0:03:02]} 6. Be3 {[%clk 0:03:02]}  e5 {[%clk 0:03:02]} 7. Nb3 {[%clk 0:03:03]}  Be7 {[%clk 0:03:03]} 8. f3 {[%clk 0:03:03]}  Be6 {[%clk 0:03:03]} 9. Qd2 {[%clk 0:03:03]}  h5 {[%clk 0:03:04]} 10. Nd5 {[%clk 0:03:03]}  Nxd5 {[%clk 0:03:02]} 11. exd5 {[%clk 0:03:03]}  Bf5 {[%clk 0:03:03]} 12. Bd3 {[%clk 0:03:03]}  Bxd3 {[%clk 0:03:01]} 13. Qxd3 {[%clk 0:03:03]}  Bh4+ {[%clk 0:03:01]} 14. g3 {[%clk 0:03:02]}  Be7 {[%clk 0:03:02]} 15. O-O-O {[%clk 0:03:02]}  Nd7 {[%clk 0:03:02]} 16. Kb1 {[%clk 0:03:02]}  Rc8 {[%clk 0:03:02]} 17. Nd2 {[%clk 0:02:55]}  b5 {[%clk 0:03:02]} 18. g4 {[%clk 0:02:46]}  Nb6 {[%clk 0:02:59]} 19. Bxb6 {[%clk 0:02:41]}  Qxb6 {[%clk 0:03:00]} 20. Ne4 {[%clk 0:02:40]}  h4 {[%clk 0:02:54]} 21. g5 {[%clk 0:02:37]}  g6 {[%clk 0:02:51]} 22. f4 {[%clk 0:02:31]}  exf4 {[%clk 0:02:49]} 23. Nf6+ {[%clk 0:02:01]}  Bxf6 {[%clk 0:02:47]} 24. gxf6 {[%clk 0:02:02]}  O-O {[%clk 0:02:36]} 25. Rhg1 {[%clk 0:01:59]}  Kh7 {[%clk 0:02:11]} 26. Rg4 {[%clk 0:01:39]}  Qf2 {[%clk 0:02:08]} 27. Rd2 {[%clk 0:01:29]}  Qe1+ {[%clk 0:02:07]} 28. Rd1 {[%clk 0:01:29]}  Qf2 {[%clk 0:02:06]} 29. Rd2 {[%clk 0:01:28]}  Qe3 {[%clk 0:01:52]} 30. Rxh4+ {[%clk 0:01:11]}  Kg8 {[%clk 0:01:52]} 31. a3 {[%clk 0:00:55]}  Rfe8 {[%clk 0:01:49]} 32. Rh6 {[%clk 0:00:44]}  Re4 {[%clk 0:01:34]} 33. Qf1 {[%clk 0:00:27]}  Rce8 {[%clk 0:00:28]} 34. Ka2 {[%clk 0:00:19]}  Qxd2 {[%clk 0:00:24]} 35. Rh8+ {[%clk 0:00:16]}  Kxh8 {[%clk 0:00:24]} 36. Qh3+ {[%clk 0:00:16]}  Kg8 {[%clk 0:00:24]} 37. Qh6 {[%clk 0:00:17]}  Qxd5+ {[%clk 0:00:24]} 38. b3 {[%clk 0:00:13]}  Qxb3+ {[%clk 0:00:20]} 39. Kxb3 {[%clk 0:00:13]}  Re3+ {[%clk 0:00:10]} 40. Kb2 {[%clk 0:00:13]} 1-0


[Site "https://www.chess.com"]

[Event "Titled Tuesday Blitz August 1 Late 2023"]
[White "Wu, Derek"]
[Black "Arnold, Ken"]
[WhiteFideId "30914558"]
[BlackFideId "2056836"]
[WhiteElo "2699"]
[BlackElo "2423"]
[Result "0-1"]
[Round "2"]
[TimeControl "180+1"]
[Date "2023.08.01"]
[WhiteClock "0:00:40"]
[BlackClock "0:01:05"]
[Board "92"]

1. e4 {[%clk 0:03:00]}  c6 {[%clk 0:02:59]} 2. d4 {[%clk 0:02:55]}  d5 {[%clk 0:02:59]} 3. e5 {[%clk 0:02:56]}  Bf5 {[%clk 0:02:59]} 4. Nd2 {[%clk 0:02:54]}  e6 {[%clk 0:02:59]} 5. Nb3 {[%clk 0:02:54]}  Nd7 {[%clk 0:02:59]} 6. Nf3 {[%clk 0:02:52]}  Ne7 {[%clk 0:02:57]} 7. Be2 {[%clk 0:02:52]}  Bg6 {[%clk 0:02:57]} 8. O-O {[%clk 0:02:51]}  Nf5 {[%clk 0:02:57]} 9. a4 {[%clk 0:02:50]}  a5 {[%clk 0:02:56]} 10. Bd2 {[%clk 0:02:43]}  Qc7 {[%clk 0:02:55]} 11. g4 {[%clk 0:02:37]}  Nh6 {[%clk 0:02:52]} 12. Nh4 {[%clk 0:02:35]}  Be7 {[%clk 0:02:51]} 13. Ng2 {[%clk 0:02:32]}  Ng8 {[%clk 0:02:41]} 14. f4 {[%clk 0:02:17]}  f5 {[%clk 0:02:39]} 15. Ne3 {[%clk 0:02:11]}  Nh6 {[%clk 0:02:36]} 16. Kh1 {[%clk 0:01:59]}  fxg4 {[%clk 0:02:36]} 17. Nxg4 {[%clk 0:01:58]}  Nxg4 {[%clk 0:02:35]} 18. Bxg4 {[%clk 0:01:58]}  Be4+ {[%clk 0:02:34]} 19. Bf3 {[%clk 0:01:53]}  Bf5 {[%clk 0:02:27]} 20. Rc1 {[%clk 0:01:43]}  O-O {[%clk 0:02:20]} 21. Qe1 {[%clk 0:01:42]}  b6 {[%clk 0:02:16]} 22. Qg3 {[%clk 0:01:42]}  Kh8 {[%clk 0:02:14]} 23. Rg1 {[%clk 0:01:41]}  Rf7 {[%clk 0:02:12]} 24. c4 {[%clk 0:01:33]}  Qd8 {[%clk 0:02:02]} 25. Be1 {[%clk 0:01:20]}  Nf8 {[%clk 0:01:53]} 26. Bh5 {[%clk 0:01:09]}  Ng6 {[%clk 0:01:44]} 27. cxd5 {[%clk 0:01:00]}  Be4+ {[%clk 0:01:42]} 28. Bf3 {[%clk 0:01:00]}  Qxd5 {[%clk 0:01:40]} 29. Nd2 {[%clk 0:00:57]}  Bxf3+ {[%clk 0:01:38]} 30. Qxf3 {[%clk 0:00:58]}  Nxf4 {[%clk 0:01:37]} 31. Rxc6 {[%clk 0:00:53]}  Bb4 {[%clk 0:01:15]} 32. Rxe6 {[%clk 0:00:42]}  Qxf3+ {[%clk 0:01:09]} 33. Nxf3 {[%clk 0:00:43]}  Nxe6 {[%clk 0:01:08]} 34. Bxb4 {[%clk 0:00:42]}  axb4 {[%clk 0:01:08]} 35. Rg3 {[%clk 0:00:43]}  Rxf3 {[%clk 0:01:06]} 36. d5 {[%clk 0:00:40]}  Rxg3 {[%clk 0:01:05]} 0-1


[Site "https://www.chess.com"]

[Event "Titled Tuesday Blitz August 1 Late 2023"]
[White "Pesotskiy, Mikhail"]
[Black "Ponikarovsky, Alexey"]
[WhiteFideId "34164453"]
[BlackFideId "4122887"]
[WhiteElo "2384"]
[BlackElo "2645"]
[Result "0-1"]
[Round "2"]
[TimeControl "180+1"]
[Date "2023.08.01"]
[WhiteClock "0:01:19"]
[BlackClock "0:02:02"]
[Board "94"]

1. d4 {[%clk 0:02:59]}  Nf6 {[%clk 0:02:50]} 2. c4 {[%clk 0:02:59]}  e6 {[%clk 0:02:50]} 3. Nc3 {[%clk 0:02:59]}  d5 {[%clk 0:02:50]} 4. cxd5 {[%clk 0:02:59]}  Nxd5 {[%clk 0:02:51]} 5. e4 {[%clk 0:02:58]}  Nxc3 {[%clk 0:02:51]} 6. bxc3 {[%clk 0:02:59]}  c5 {[%clk 0:02:52]} 7. Rb1 {[%clk 0:03:00]}  cxd4 {[%clk 0:02:52]} 8. cxd4 {[%clk 0:03:01]}  Be7 {[%clk 0:02:53]} 9. Bb5+ {[%clk 0:02:59]}  Bd7 {[%clk 0:02:52]} 10. Qa4 {[%clk 0:02:54]}  O-O {[%clk 0:02:47]} 11. Nf3 {[%clk 0:02:42]}  Bxb5 {[%clk 0:02:42]} 12. Rxb5 {[%clk 0:02:42]}  b6 {[%clk 0:02:39]} 13. O-O {[%clk 0:02:33]}  Nd7 {[%clk 0:02:39]} 14. Ba3 {[%clk 0:02:31]}  Bxa3 {[%clk 0:02:38]} 15. Qxa3 {[%clk 0:02:32]}  Nf6 {[%clk 0:02:38]} 16. Re1 {[%clk 0:02:25]}  Qd7 {[%clk 0:02:33]} 17. Rbb1 {[%clk 0:02:14]}  Rac8 {[%clk 0:02:31]} 18. Rbc1 {[%clk 0:02:14]}  h6 {[%clk 0:02:28]} 19. h3 {[%clk 0:02:12]}  Rfd8 {[%clk 0:02:26]} 20. Qe3 {[%clk 0:02:11]}  Qa4 {[%clk 0:02:21]} 21. Rxc8 {[%clk 0:01:58]}  Rxc8 {[%clk 0:02:20]} 22. Qb3 {[%clk 0:01:59]}  Qxb3 {[%clk 0:02:14]} 23. axb3 {[%clk 0:02:00]}  Rc3 {[%clk 0:02:14]} 24. Ra1 {[%clk 0:01:40]}  a5 {[%clk 0:02:14]} 25. Nd2 {[%clk 0:01:41]}  Rd3 {[%clk 0:02:10]} 26. Nc4 {[%clk 0:01:41]}  Rxb3 {[%clk 0:02:08]} 27. e5 {[%clk 0:01:35]}  Nd5 {[%clk 0:02:08]} 28. Rc1 {[%clk 0:01:25]}  a4 {[%clk 0:02:05]} 29. Nd6 {[%clk 0:01:19]}  Nc3 {[%clk 0:02:02]} 0-1


[Site "https://www.chess.com"]

[Event "Titled Tuesday Blitz August 1 Late 2023"]
[White "Sun, Rick"]
[Black "FuenfgegenWilly"]
[WhiteFideId "30909481"]
[WhiteElo "2636"]
[BlackElo "2415"]
[Result "0-1"]
[Round "2"]
[TimeControl "180+1"]
[Date "2023.08.01"]
[WhiteClock "0:00:15"]
[BlackClock "0:00:14"]
[Board "95"]

1. e4 {[%clk 0:03:00]}  c5 {[%clk 0:02:55]} 2. Nc3 {[%clk 0:03:01]}  a6 {[%clk 0:02:55]} 3. Nf3 {[%clk 0:03:01]}  b5 {[%clk 0:02:56]} 4. d4 {[%clk 0:03:00]}  cxd4 {[%clk 0:02:56]} 5. Qxd4 {[%clk 0:03:00]}  Bb7 {[%clk 0:02:57]} 6. a4 {[%clk 0:02:44]}  Nc6 {[%clk 0:02:56]} 7. Qe3 {[%clk 0:02:41]}  b4 {[%clk 0:02:55]} 8. Nd5 {[%clk 0:02:38]}  e6 {[%clk 0:02:54]} 9. Nb6 {[%clk 0:02:38]}  Rb8 {[%clk 0:02:48]} 10. a5 {[%clk 0:02:34]}  Nf6 {[%clk 0:02:47]} 11. Bc4 {[%clk 0:02:27]}  Be7 {[%clk 0:02:33]} 12. e5 {[%clk 0:02:06]}  Ng4 {[%clk 0:02:33]} 13. Qf4 {[%clk 0:02:06]}  Nh6 {[%clk 0:02:33]} 14. O-O {[%clk 0:01:53]}  O-O {[%clk 0:02:31]} 15. Rd1 {[%clk 0:01:48]}  Bc8 {[%clk 0:02:23]} 16. Bd3 {[%clk 0:01:30]}  f5 {[%clk 0:02:12]} 17. exf6 {[%clk 0:01:01]}  Rxf6 {[%clk 0:02:12]} 18. Qe4 {[%clk 0:00:57]}  Nf5 {[%clk 0:02:10]} 19. Bg5 {[%clk 0:00:56]}  Rf7 {[%clk 0:02:06]} 20. Nxc8 {[%clk 0:00:47]}  Qxc8 {[%clk 0:02:03]} 21. Bxe7 {[%clk 0:00:42]}  Ncxe7 {[%clk 0:02:02]} 22. Ng5 {[%clk 0:00:37]}  Rf6 {[%clk 0:01:59]} 23. g4 {[%clk 0:00:30]}  Rg6 {[%clk 0:01:59]} 24. f4 {[%clk 0:00:20]}  Qc5+ {[%clk 0:01:53]} 25. Kh1 {[%clk 0:00:19]}  Ne3 {[%clk 0:01:52]} 26. Rg1 {[%clk 0:00:14]}  Rf8 {[%clk 0:01:39]} 27. Rae1 {[%clk 0:00:12]}  N3d5 {[%clk 0:01:38]} 28. f5 {[%clk 0:00:11]}  exf5 {[%clk 0:01:36]} 29. gxf5 {[%clk 0:00:11]}  Nxf5 {[%clk 0:01:36]} 30. Nxh7 {[%clk 0:00:10]}  Rxg1+ {[%clk 0:01:05]} 31. Rxg1 {[%clk 0:00:11]}  Kxh7 {[%clk 0:01:06]} 32. Qe5 {[%clk 0:00:12]}  g6 {[%clk 0:00:51]} 33. Rg4 {[%clk 0:00:02]}  Qc6 {[%clk 0:00:25]} 34. Bxf5 {[%clk 0:00:01]}  Rxf5 {[%clk 0:00:21]} 35. Rh4+ {[%clk 0:00:01]}  Rh5 {[%clk 0:00:15]} 36. Rxh5+ {[%clk 0:00:01]}  gxh5 {[%clk 0:00:16]} 37. Qxh5+ {[%clk 0:00:02]}  Kg7 {[%clk 0:00:17]} 38. Qg5+ {[%clk 0:00:02]}  Kf7 {[%clk 0:00:17]} 39. Qh5+ {[%clk 0:00:01]}  Ke7 {[%clk 0:00:17]} 40. Qg5+ {[%clk 0:00:02]}  Nf6+ {[%clk 0:00:17]} 41. Kg1 {[%clk 0:00:02]}  Qe6 {[%clk 0:00:16]} 42. Qg7+ {[%clk 0:00:02]}  Kd6 {[%clk 0:00:16]} 43. Qf8+ {[%clk 0:00:02]}  Qe7 {[%clk 0:00:16]} 44. Qb8+ {[%clk 0:00:03]}  Ke6 {[%clk 0:00:15]} 45. Qb6+ {[%clk 0:00:03]}  Qd6 {[%clk 0:00:15]} 46. Qe3+ {[%clk 0:00:03]}  Kf5 {[%clk 0:00:15]} 47. Qf3+ {[%clk 0:00:03]}  Qf4 {[%clk 0:00:15]} 48. Qd3+ {[%clk 0:00:03]}  Ke6 {[%clk 0:00:14]} 49. Qxa6+ {[%clk 0:00:04]}  d6 {[%clk 0:00:14]} 50. Qb5 {[%clk 0:00:03]}  Qc1+ {[%clk 0:00:13]} 51. Kg2 {[%clk 0:00:03]}  Qxc2+ {[%clk 0:00:13]} 52. Kg3 {[%clk 0:00:04]}  Qb3+ {[%clk 0:00:10]} 53. Kg2 {[%clk 0:00:04]}  Qd5+ {[%clk 0:00:10]} 54. Qxd5+ {[%clk 0:00:04]}  Kxd5 {[%clk 0:00:10]} 55. h4 {[%clk 0:00:05]}  Kc5 {[%clk 0:00:10]} 56. Kf3 {[%clk 0:00:05]}  Kb5 {[%clk 0:00:09]} 57. Kf4 {[%clk 0:00:06]}  Kxa5 {[%clk 0:00:09]} 58. Kf5 {[%clk 0:00:06]}  Ng8 {[%clk 0:00:09]} 59. Ke6 {[%clk 0:00:06]}  Ka4 {[%clk 0:00:08]} 60. Kxd6 {[%clk 0:00:07]}  Kb3 {[%clk 0:00:04]} 61. Kc5 {[%clk 0:00:07]}  Nh6 {[%clk 0:00:05]} 62. Kb5 {[%clk 0:00:07]}  Nf5 {[%clk 0:00:04]} 63. h5 {[%clk 0:00:08]}  Nh6 {[%clk 0:00:05]} 64. Kc5 {[%clk 0:00:08]}  Ka4 {[%clk 0:00:05]} 65. Kc4 {[%clk 0:00:08]}  Ka5 {[%clk 0:00:05]} 66. Kc5 {[%clk 0:00:08]}  Ng4 {[%clk 0:00:05]} 67. Kc4 {[%clk 0:00:08]}  Ne5+ {[%clk 0:00:06]} 68. Kc5 {[%clk 0:00:09]}  Ka4 {[%clk 0:00:06]} 69. h6 {[%clk 0:00:09]}  Kb3 {[%clk 0:00:05]} 70. h7 {[%clk 0:00:07]}  Nf7 {[%clk 0:00:04]} 71. Kb5 {[%clk 0:00:08]}  Nd6+ {[%clk 0:00:04]} 72. Kc6 {[%clk 0:00:08]}  Nf7 {[%clk 0:00:04]} 73. Kc5 {[%clk 0:00:08]}  Nh8 {[%clk 0:00:04]} 74. Kb5 {[%clk 0:00:08]}  Ng6 {[%clk 0:00:04]} 75. Kc5 {[%clk 0:00:08]}  Ka4 {[%clk 0:00:05]} 76. Kc4 {[%clk 0:00:07]}  Ka5 {[%clk 0:00:05]} 77. b3 {[%clk 0:00:07]}  Nh8 {[%clk 0:00:05]} 78. Kc5 {[%clk 0:00:07]}  Nf7 {[%clk 0:00:05]} 79. Kd5 {[%clk 0:00:08]}  Kb5 {[%clk 0:00:05]} 80. Ke6 {[%clk 0:00:08]}  Ng5+ {[%clk 0:00:05]} 81. Kd5 {[%clk 0:00:03]}  Nxh7 {[%clk 0:00:06]} 82. Kd6 {[%clk 0:00:04]}  Ng5 {[%clk 0:00:07]} 83. Kd5 {[%clk 0:00:04]}  Nf3 {[%clk 0:00:08]} 84. Ke4 {[%clk 0:00:04]}  Nd2+ {[%clk 0:00:08]} 85. Kd3 {[%clk 0:00:05]}  Nxb3 {[%clk 0:00:09]} 86. Kc2 {[%clk 0:00:05]}  Na5 {[%clk 0:00:10]} 87. Kb2 {[%clk 0:00:06]}  Ka4 {[%clk 0:00:11]} 88. Kb1 {[%clk 0:00:07]}  Ka3 {[%clk 0:00:11]} 89. Ka1 {[%clk 0:00:07]}  b3 {[%clk 0:00:12]} 90. Kb1 {[%clk 0:00:08]}  b2 {[%clk 0:00:12]} 91. Kc2 {[%clk 0:00:08]}  Ka2 {[%clk 0:00:13]} 92. Kc3 {[%clk 0:00:09]}  b1=Q {[%clk 0:00:13]} 93. Kd2 {[%clk 0:00:10]}  Qb3 {[%clk 0:00:13]} 94. Kc1 {[%clk 0:00:10]}  Qb2+ {[%clk 0:00:13]} 95. Kd1 {[%clk 0:00:11]}  Kb3 {[%clk 0:00:12]} 96. Ke1 {[%clk 0:00:11]}  Kc3 {[%clk 0:00:13]} 97. Kf1 {[%clk 0:00:12]}  Kd3 {[%clk 0:00:13]} 98. Kg1 {[%clk 0:00:13]}  Ke3 {[%clk 0:00:14]} 99. Kh1 {[%clk 0:00:14]}  Kf3 {[%clk 0:00:14]} 100. Kg1 {[%clk 0:00:15]}  Qg2# {[%clk 0:00:14]} 0-1


[Site "https://www.chess.com"]